bitfinex/quotes_BTCUSD_20251012
["timestamp","ask_amount","ask_price","bid_price","bid_amount"]
[1760232561753,0.2180616,110190.0,110180.0,0.09181]
[1760232563012,0.2180616,110190.0,110180.0,0.05027]
[1760232563215,0.2180616,110190.0,110180.0,0.09181]
[1760232563956,0.2180616,110190.0,110180.0,0.05027]
[1760232564604,0.2180616,110190.0,110180.0,0.09181]
[1760232567175,0.02741919,110190.0,110180.0,0.31654295]
[1760232567396,0.02741919,110190.0,110180.0,0.13502181]
[1760232567632,0.02741919,110190.0,110180.0,0.33469506]
[1760232567839,0.02741919,110190.0,110180.0,0.31654295]
[1760232568519,0.02741919,110190.0,110180.0,0.90958932]
[1760232569167,0.02741919,110190.0,110180.0,0.31654295]
[1760232569375,0.02741919,110190.0,110180.0,0.30348304]
[1760232570666,0.20892386,110190.0,110180.0,0.1219619]
[1760232571722,0.02741919,110190.0,110180.0,0.30348304]
[1760232573655,0.20892386,110190.0,110180.0,0.30348304]
[1760232573861,0.20892386,110190.0,110180.0,0.1219619]
[1760232574085,0.28196528,110190.0,110180.0,0.05027]
[1760232574293,0.59394386,110190.0,110180.0,0.05027]
[1760232576443,0.56704386,110190.0,110180.0,0.05027]
[1760232576647,0.54892386,110190.0,110180.0,0.08908]
[1760232576850,0.34,110190.0,110180.0,0.08908]
[1760232577072,0.52150467,110190.0,110180.0,0.08908]
[1760232577702,0.52150467,110190.0,110180.0,0.10186691]
[1760232578335,0.54906321,110190.0,110180.0,0.10186691]
[1760232578548,0.02755854,110190.0,110180.0,0.10186691]
[1760232578766,0.02755854,110190.0,110180.0,0.30154016]
[1760232578981,0.52149032,110200.0,110180.0,0.74616335]
[1760232578982,0.5214882,110200.0,110180.0,0.74616335]
[1760232579201,0.5214882,110200.0,110190.0,0.05887]
[1760232579396,0.34,110200.0,110190.0,0.31699701]
[1760232579647,0.19063529,110210.0,110190.0,0.16257234]
[1760232579850,0.5214882,110200.0,110190.0,0.04714]
[1760232580510,0.5214882,110200.0,110190.0,0.08595]
[1760232580921,0.54463344,110200.0,110190.0,0.08595]
[1760232582806,0.54463344,110200.0,110190.0,0.08695]
[1760232583016,0.54463344,110200.0,110190.0,0.08795]
[1760232583225,0.3342921,110200.0,110190.0,0.16317864]
[1760232583447,0.5157803,110200.0,110190.0,0.16317864]
[1760232584887,0.51637545,110200.0,110190.0,0.16317864]
[1760232585091,0.51637545,110200.0,110190.0,0.34468331]
[1760232585740,0.33488725,110200.0,110190.0,0.80745861]
[1760232586337,0.33488725,110200.0,110190.0,0.83761051]
[1760232586547,0.02374039,110200.0,110190.0,0.83761051]
[1760232586746,0.00059515,110200.0,110190.0,0.83761051]
[1760232586956,0.00059515,110200.0,110190.0,0.9376105]
[1760232589322,0.00059515,110200.0,110190.0,0.9366105]
[1760232589542,0.00059515,110200.0,110190.0,0.9376105]
[1760232589763,0.00059515,110200.0,110190.0,0.9396105]
[1760232591142,0.00059515,110200.0,110190.0,0.37683521]
[1760232591365,0.00059515,110200.0,110190.0,0.9396105]
[1760232591549,0.00059515,110200.0,110190.0,0.83961051]
[1760232591792,0.00059515,110200.0,110190.0,0.83761051]
[1760232592000,0.00059515,110200.0,110190.0,0.9356105]
[1760232592208,0.00059515,110200.0,110190.0,0.83761051]
[1760232592422,0.00059515,110200.0,110190.0,0.83961051]
[1760232592639,0.54450625,110230.0,110210.0,0.18147173]
[1760232592846,0.18145719,110220.0,110210.0,0.26622643]
[1760232593265,0.18145719,110220.0,110210.0,0.29423643]
[1760232593695,0.18145719,110220.0,110210.0,0.33608643]
[1760232594116,0.19052995,110220.0,110210.0,0.33608643]
[1760232594989,0.19052995,110220.0,110210.0,0.33808643]
[1760232595210,0.54450625,110230.0,110210.0,0.33808643]
[1760232595426,0.54450625,110230.0,110220.0,0.26178079]
[1760232595427,0.36306577,110230.0,110220.0,0.26178079]
[1760232595700,0.54450457,110230.0,110220.0,0.36036461]
[1760232596114,0.36306577,110230.0,110220.0,0.36036461]
[1760232596870,0.54450457,110230.0,110220.0,0.36036461]
[1760232597229,0.34,110240.0,110230.0,0.21158199]
[1760232597384,0.52142235,110240.0,110230.0,0.25992199]
[1760232597715,0.52142235,110240.0,110230.0,0.3335996]
[1760232597920,0.34,110240.0,110230.0,0.3335996]
[1760232598222,0.19075705,110260.0,110240.0,0.18141338]
[1760232598442,0.19075705,110260.0,110250.0,0.02033]
[1760232598443,0.19090799,110260.0,110250.0,0.02033]
[1760232598587,0.02380051,110260.0,110250.0,0.31612881]
[1760232598782,0.02380051,110260.0,110250.0,0.29798823]
[1760232599760,0.02380051,110260.0,110250.0,0.79191543]
[1760232599974,0.00035094,110260.0,110250.0,0.79191543]
[1760232600605,0.00035094,110260.0,110250.0,0.79291543]
[1760232600821,0.00035094,110260.0,110250.0,0.33014013]
[1760232601031,0.00035094,110260.0,110250.0,0.79291543]
[1760232605353,0.56738038,110260.0,110250.0,0.05034]
[1760232605763,0.57094917,110260.0,110250.0,0.002]
[1760232605993,5.13995347,110260.0,110250.0,0.002]
[1760232606198,5.15685817,110260.0,110250.0,0.002]
[1760232606408,5.16531381,110260.0,110250.0,0.002]
[1760232607019,5.16531381,110260.0,110250.0,0.001]
[1760232607442,0.59630951,110260.0,110250.0,0.02894]
[1760232607643,0.59630951,110260.0,110250.0,0.09058]
[1760232607644,0.54221387,110260.0,110250.0,0.09058]
[1760232607848,0.54221387,110260.0,110250.0,0.100787]
[1760232608485,0.54221387,110260.0,110250.0,0.28219289]
[1760232608486,0.00391973,110260.0,110250.0,0.28219289]
[1760232608689,0.00391973,110260.0,110250.0,0.74596819]
[1760232608896,0.00391973,110260.0,110250.0,0.77612009]
[1760232609541,0.00391973,110260.0,110250.0,0.31334479]
[1760232609949,0.00391973,110260.0,110250.0,0.31434479]
[1760232610289,0.00391973,110260.0,110250.0,0.77612009]
[1760232610740,0.00391973,110260.0,110250.0,0.31434479]
[1760232610996,0.00391973,110260.0,110250.0,0.31334479]
[1760232611216,0.00391973,110260.0,110250.0,0.31434479]
[1760232612142,0.00391973,110260.0,110250.0,0.77712009]
[1760232613029,0.00391973,110260.0,110250.0,0.87712008]
[1760232613271,0.00391973,110260.0,110250.0,0.90212007]
[1760232613994,0.00391973,110260.0,110250.0,0.77734477]
[1760232614206,0.00391973,110260.0,110250.0,1.24212007]
[1760232614413,0.00391973,110260.0,110250.0,1.24412007]
[1760232614615,0.00391973,110260.0,110250.0,1.24012007]
[1760232614824,0.0002,110310.0,110290.0,0.211492]
[1760232615031,0.18201198,110310.0,110300.0,0.50239766]
[1760232615214,0.52201198,110310.0,110300.0,0.08958]
[1760232615428,0.18201198,110310.0,110300.0,0.08958]
[1760232615921,0.52201198,110310.0,110300.0,0.08958]
[1760232616673,1.09509968,110310.0,110290.0,0.02249]
[1760232616874,0.58057366,110300.0,110290.0,0.001]
[1760232617074,0.5213401,110290.0,110280.0,0.02149]
[1760232617279,0.18135654,110280.0,110270.0,0.09311362]
[1760232617623,0.57695681,110290.0,110280.0,0.04943]
[1760232617624,0.5213401,110290.0,110280.0,0.04943]
[1760232618055,0.5213401,110290.0,110280.0,0.08958]
[1760232619269,0.5213401,110290.0,110280.0,0.101687]
[1760232620129,0.5213401,110290.0,110280.0,0.102687]
[1760232620522,0.5213401,110290.0,110280.0,0.101687]
[1760232620767,0.5213401,110290.0,110280.0,0.100687]
[1760232620985,0.52312353,110290.0,110280.0,0.05143]
[1760232621431,0.52312353,110290.0,110280.0,0.09158]
[1760232622352,0.52312353,110290.0,110280.0,0.08958]
[1760232622543,0.52312353,110290.0,110280.0,0.09058]
[1760232622753,0.52312353,110290.0,110280.0,0.09158]
[1760232623265,0.52312353,110290.0,110280.0,0.09058]
[1760232623479,0.52312353,110290.0,110280.0,0.09158]
[1760232623684,0.52312353,110290.0,110280.0,0.09058]
[1760232624071,0.52312353,110290.0,110280.0,0.09158]
[1760232625112,0.52312353,110290.0,110280.0,0.12102411]
[1760232625725,0.52312353,110290.0,110280.0,0.30238065]
[1760232626376,0.53159352,110290.0,110280.0,0.30238065]
[1760232626579,0.52312353,110290.0,110280.0,0.30238065]
[1760232627373,0.34178343,110290.0,110280.0,0.33253255]
[1760232627572,0.00178343,110290.0,110280.0,0.33253255]
[1760232628699,0.18312353,110290.0,110280.0,0.30238065]
[1760232629528,1.07214883,110290.0,110280.0,0.002]
[1760232629736,5.21042034,110290.0,110280.0,1e-08]
[1760232629938,5.22994663,110290.0,110280.0,1e-08]
[1760232630141,5.2055674,110290.0,110280.0,1e-08]
[1760232630348,0.18138944,110260.0,110250.0,0.09409016]
[1760232630550,0.66111282,110260.0,110250.0,0.12203016]
[1760232630762,0.66111282,110260.0,110250.0,0.05040654]
[1760232630985,1.00111282,110260.0,110250.0,0.05040654]
[1760232631172,1.00111282,110260.0,110250.0,0.06161119]
[1760232631717,1.00111282,110260.0,110250.0,0.10413119]
[1760232632128,0.98416474,110260.0,110250.0,0.06261119]
[1760232632361,0.98416474,110260.0,110250.0,0.06361119]
[1760232632571,0.52138944,110260.0,110250.0,0.10513119]
[1760232633276,0.52138944,110260.0,110250.0,0.12327177]
[1760232634137,0.34,110260.0,110250.0,0.30467766]
[1760232634373,0.19045097,110280.0,110260.0,0.18138333]
[1760232634583,0.18137299,110270.0,110260.0,0.25108056]
[1760232634786,0.34,110270.0,110260.0,0.25108056]
[1760232634990,0.52137299,110270.0,110260.0,0.27915056]
[1760232635190,0.52137299,110270.0,110260.0,0.32067056]
[1760232635606,0.52137299,110270.0,110260.0,0.13928723]
[1760232635819,0.52196757,110270.0,110260.0,0.08948]
[1760232636440,0.52196757,110270.0,110260.0,0.09048]
[1760232636650,1.03257287,110270.0,110260.0,0.04796]
[1760232637060,0.52138944,110260.0,110250.0,0.02246654]
[1760232637384,0.98416474,110260.0,110250.0,0.02246654]
[1760232637825,1.03296474,110260.0,110250.0,0.00097654]
[1760232638037,1.07407474,110260.0,110250.0,0.00097654]
[1760232638476,5.14082374,110260.0,110250.0,0.00097654]
[1760232638707,5.15778106,110260.0,110250.0,0.00197654]
[1760232639318,5.14082374,110260.0,110250.0,0.00297654]
[1760232639522,5.27011379,110260.0,110250.0,0.00197654]
[1760232639728,5.28706537,110260.0,110250.0,0.00097654]
[1760232639944,0.62825102,110260.0,110250.0,0.00097654]
[1760232640156,1.20336479,110260.0,110250.0,0.00097654]
[1760232640578,1.16225479,110260.0,110250.0,0.00097654]
[1760232640993,1.20336479,110260.0,110250.0,0.00097654]
[1760232643209,5.27011379,110260.0,110250.0,0.00097654]
[1760232643413,0.5214388,110230.0,110220.0,0.07162362]
[1760232643635,0.5401988,110230.0,110220.0,0.07177456]
[1760232643808,0.5689888,110230.0,110220.0,0.02767094]
[1760232644031,0.5214388,110230.0,110220.0,0.05729103]
[1760232644233,0.34,110230.0,110220.0,0.09643103]
[1760232644488,0.34,110230.0,110220.0,0.32618372]
[1760232644690,0.5214388,110230.0,110220.0,0.3080382]
[1760232645016,0.5214388,110230.0,110220.0,0.12658293]
[1760232645635,0.5214388,110230.0,110220.0,0.3090382]
[1760232646247,0.34,110230.0,110220.0,0.3090382]
[1760232646440,0.34,110230.0,110220.0,0.3100382]
[1760232646808,0.5214388,110230.0,110220.0,0.3100382]
[1760232647028,0.34,110230.0,110220.0,0.3100382]
[1760232647260,0.18140844,110250.0,110230.0,0.21157436]
[1760232647484,0.18140844,110250.0,110240.0,0.08761]
[1760232647704,0.52140844,110250.0,110240.0,0.08761]
[1760232648346,0.52140844,110250.0,110240.0,0.04847]
[1760232648961,0.54016844,110250.0,110240.0,0.04847]
[1760232649166,0.52142235,110240.0,110230.0,0.11014334]
[1760232649372,0.52142235,110240.0,110230.0,0.08761]
[1760232649579,0.52142235,110240.0,110230.0,0.11749334]
[1760232649785,0.34,110240.0,110230.0,0.30801439]
[1760232649990,0.52142235,110240.0,110230.0,0.11749334]
[1760232650195,0.52142235,110240.0,110230.0,0.08761]
[1760232651381,0.52142235,110240.0,110230.0,0.04847]
[1760232651606,0.56897235,110240.0,110230.0,0.04847]
[1760232651780,0.56897235,110240.0,110220.0,0.02110094]
[1760232651781,0.1814388,110230.0,110220.0,0.02110094]
[1760232652189,0.1814388,110230.0,110220.0,0.08776094]
[1760232652372,0.1814388,110230.0,110220.0,0.11667308]
[1760232653090,0.1814388,110230.0,110220.0,0.11767308]
[1760232653319,0.52142235,110240.0,110220.0,0.29812835]
[1760232653523,0.52142235,110240.0,110230.0,0.06009]
[1760232653724,0.52142235,110240.0,110230.0,0.08761]
[1760232653895,0.53047873,110250.0,110230.0,0.30105664]
[1760232654070,0.53047873,110250.0,110240.0,0.06009]
[1760232654278,0.53047873,110250.0,110240.0,0.08761]
[1760232654504,0.52140589,110250.0,110240.0,0.10634702]
[1760232654695,0.52140589,110250.0,110240.0,0.08820479]
[1760232654936,0.52140589,110250.0,110240.0,0.12046493]
[1760232655139,0.34,110250.0,110240.0,0.30188728]
[1760232655366,0.18237154,110260.0,110240.0,0.33303918]
[1760232655566,0.18237154,110260.0,110250.0,0.07823058]
[1760232655761,0.52237154,110260.0,110250.0,0.06009]
[1760232656007,0.52237154,110260.0,110250.0,0.08761]
[1760232656693,0.52237154,110260.0,110250.0,0.04847]
[1760232656904,1.16299689,110260.0,110250.0,0.02095]
[1760232657115,0.18140589,110250.0,110240.0,0.06068479]
[1760232657325,0.18140589,110250.0,110240.0,0.08820479]
[1760232657971,0.18140589,110250.0,110240.0,0.12046476]
[1760232658176,0.18140589,110250.0,110240.0,0.12146476]
[1760232658592,0.18140589,110250.0,110240.0,0.12246476]
[1760232659229,0.18237154,110260.0,110240.0,0.09020479]
[1760232659445,0.0009765,110260.0,110250.0,0.28978837]
[1760232659651,0.0009765,110260.0,110250.0,0.29916779]
[1760232661623,0.0009765,110260.0,110250.0,0.30116779]
[1760232661827,0.0009765,110260.0,110250.0,0.30316779]
[1760232662318,0.0009765,110260.0,110250.0,0.30116779]
[1760232662538,0.0009765,110260.0,110250.0,0.34978047]
[1760232662970,0.0009765,110260.0,110250.0,0.35078047]
[1760232663812,0.0009765,110260.0,110250.0,0.35178047]
[1760232664172,0.0009765,110260.0,110250.0,0.35078047]
[1760232664369,0.0009765,110260.0,110250.0,0.35278047]
[1760232664778,0.0009765,110260.0,110250.0,0.35178047]
[1760232665421,0.0009765,110260.0,110250.0,0.1207619]
[1760232665422,0.18236594,110260.0,110250.0,0.1207619]
[1760232666298,0.18236594,110260.0,110250.0,0.1197619]
[1760232666502,0.18236594,110260.0,110250.0,0.30216779]
[1760232666703,0.18236594,110260.0,110250.0,0.30016779]
[1760232666908,0.18236594,110260.0,110250.0,0.30116779]
[1760232667112,0.18236594,110260.0,110250.0,0.17017458]
[1760232667312,0.18236594,110260.0,110250.0,0.08961]
[1760232667885,0.18236594,110260.0,110250.0,0.04947]
[1760232668083,0.18140589,110250.0,110240.0,0.02154479]
[1760232668511,0.18140589,110250.0,110240.0,0.09041479]
[1760232668872,0.18140589,110250.0,110240.0,0.04838479]
[1760232669231,0.81876124,110250.0,110240.0,0.02154479]
[1760232669405,0.81876124,110250.0,110240.0,0.04838479]
[1760232669591,0.56669589,110250.0,110240.0,0.02154479]
[1760232670018,0.56669589,110250.0,110240.0,0.02254479]
[1760232670460,0.56669589,110250.0,110240.0,0.00059479]
[1760232670867,0.56669589,110250.0,110240.0,0.00159479]
[1760232671004,0.60682589,110250.0,110240.0,0.00159479]
[1760232671207,1.19889124,110250.0,110240.0,0.00259479]
[1760232671436,1.19889124,110250.0,110240.0,0.00159479]
[1760232672029,5.26564024,110250.0,110240.0,0.00159479]
[1760232672688,5.26564024,110250.0,110240.0,0.00059479]
[1760232674596,5.2655899,110250.0,110240.0,0.00059479]
[1760232676821,5.2645899,110250.0,110240.0,0.00059479]
[1760232677020,5.2244599,110250.0,110240.0,0.00059479]
[1760232677259,5.2645899,110250.0,110240.0,0.00059479]
[1760232682026,4.67252455,110250.0,110240.0,0.00059479]
[1760232682233,5.2645899,110250.0,110240.0,0.00059479]
[1760232685768,0.5214388,110230.0,110220.0,0.00015094]
[1760232685971,1.13226415,110230.0,110220.0,0.00015094]
[1760232686176,1.15879415,110230.0,110220.0,0.00015094]
[1760232686413,1.19892415,110230.0,110220.0,0.00015094]
[1760232687038,5.26567315,110230.0,110220.0,0.00015094]
[1760232690155,5.2799034,110230.0,110220.0,0.00015094]
[1760232691353,5.2799034,110230.0,110220.0,0.00134079]
[1760232693046,5.3116481,110230.0,110220.0,1e-08]
[1760232693257,5.31151089,110230.0,110220.0,1e-08]
[1760232694495,5.34799493,110230.0,110220.0,1e-08]
[1760232695344,1.11357002,110190.0,110180.0,0.09224362]
[1760232695553,1.13223002,110190.0,110180.0,0.07177411]
[1760232695765,1.19780002,110190.0,110180.0,0.00015049]
[1760232697415,1.19780002,110190.0,110180.0,0.00115049]
[1760232697623,5.26454902,110190.0,110180.0,0.00215049]
[1760232698029,5.27878353,110190.0,110180.0,0.00215049]
[1760232698233,5.27878353,110190.0,110180.0,0.00015049]
[1760232698410,4.68671818,110190.0,110180.0,0.00015049]
[1760232698641,5.27878353,110190.0,110180.0,0.00015049]
[1760232699581,5.14972352,110190.0,110180.0,0.00015049]
[1760232700211,4.68671818,110190.0,110180.0,0.00015049]
[1760232700413,5.14972352,110190.0,110180.0,0.00015049]
[1760232700989,5.14972352,110190.0,110180.0,0.00253126]
[1760232701634,5.13548901,110190.0,110180.0,0.00253126]
[1760232702273,5.19363022,110190.0,110180.0,0.00253126]
[1760232702843,5.19363022,110190.0,110180.0,1e-08]
[1760232703058,5.17193371,110190.0,110180.0,1e-08]
[1760232704607,5.18616959,110190.0,110180.0,1e-08]
[1760232704803,4.93173915,110190.0,110180.0,1e-08]
[1760232705052,5.11324382,110190.0,110180.0,1e-08]
[1760232705261,4.65282848,110190.0,110180.0,1e-08]
[1760232705685,5.11583382,110190.0,110180.0,1e-08]
[1760232709262,5.1353272,110190.0,110180.0,1e-08]
[1760232711347,4.84874354,110190.0,110180.0,1e-08]
[1760232713338,5.18874354,110190.0,110180.0,1e-08]
[1760232716841,4.7257382,110190.0,110180.0,0.02668001]
[1760232717088,4.6842182,110190.0,110180.0,0.02668001]
[1760232717299,4.6842182,110190.0,110180.0,1e-08]
[1760232717300,4.7256382,110190.0,110180.0,1e-08]
[1760232717705,0.6588892,110190.0,110180.0,1e-08]
[1760232717921,0.6174692,110190.0,110180.0,0.02668001]
[1760232718138,0.19843994,110190.0,110180.0,0.04661001]
[1760232718354,0.19843994,110190.0,110180.0,0.08474001]
[1760232718781,0.18150219,110200.0,110180.0,0.26626115]
[1760232718988,0.19846823,110200.0,110190.0,0.01993]
[1760232719195,0.19846823,110200.0,110190.0,0.05806]
[1760232719404,0.53846823,110200.0,110190.0,0.08474]
[1760232719610,0.19846823,110200.0,110190.0,0.08474]
[1760232720300,0.18150219,110200.0,110190.0,0.08474]
[1760232720935,0.52150219,110200.0,110190.0,0.08474]
[1760232721367,0.53848256,110200.0,110190.0,0.08474]
[1760232721625,0.52150219,110200.0,110190.0,0.08474]
[1760232722468,0.52150219,110200.0,110190.0,0.08574]
[1760232723098,0.58480364,110200.0,110190.0,0.04861]
[1760232723743,0.58480364,110200.0,110190.0,0.002]
[1760232723959,1.08759898,110200.0,110190.0,0.002]
[1760232724194,1.10716503,110200.0,110190.0,0.002]
[1760232724434,0.64415969,110200.0,110190.0,0.002]
[1760232724625,1.10716503,110200.0,110190.0,0.002]
[1760232724830,1.10716503,110200.0,110190.0,0.001]
[1760232725032,5.17391403,110200.0,110190.0,0.001]
[1760232725528,0.18153762,110170.0,110160.0,0.13200362]
[1760232725673,0.18153762,110170.0,110160.0,0.15871362]
[1760232726092,0.18153762,110170.0,110160.0,0.74980485]
[1760232726297,0.18153762,110170.0,110160.0,0.35736344]
[1760232726959,0.18153762,110170.0,110160.0,0.08909]
[1760232727164,0.18153762,110170.0,110160.0,0.10724541]
[1760232727322,0.18153762,110170.0,110160.0,0.10624541]
[1760232727706,0.18153762,110170.0,110160.0,0.10724541]
[1760232728602,0.52153762,110170.0,110160.0,0.10724541]
[1760232728812,0.56649762,110170.0,110160.0,0.04764]
[1760232729023,0.56649762,110170.0,110160.0,0.08809]
[1760232729024,0.52153762,110170.0,110160.0,0.08809]
[1760232729454,0.52153762,110170.0,110160.0,0.04764]
[1760232729455,0.54783762,110170.0,110160.0,0.04764]
[1760232729669,0.56649762,110170.0,110160.0,0.04864]
[1760232729890,0.56649762,110170.0,110160.0,0.04764]
[1760232730105,0.5215541,110160.0,110150.0,0.02135]
[1760232730306,0.5215541,110160.0,110150.0,0.02185368]
[1760232730532,0.5478541,110160.0,110150.0,0.04856368]
[1760232730736,0.2078541,110160.0,110150.0,0.04856368]
[1760232731170,0.2278741,110160.0,110150.0,0.04856368]
[1760232732243,0.2278741,110160.0,110150.0,0.04956368]
[1760232732451,0.2278741,110160.0,110150.0,0.05056368]
[1760232732452,0.1815541,110160.0,110150.0,0.05056368]
[1760232732662,0.1815541,110160.0,110150.0,0.09824505]
[1760232732871,0.1815541,110160.0,110150.0,0.09724505]
[1760232733113,0.2676641,110160.0,110150.0,0.00150368]
[1760232733315,0.2278741,110160.0,110150.0,0.02921368]
[1760232733741,0.2278741,110160.0,110150.0,0.05056368]
[1760232734147,0.2676641,110160.0,110150.0,0.02385368]
[1760232734572,0.2676641,110160.0,110150.0,0.00250368]
[1760232734839,0.6076641,110160.0,110150.0,0.00250368]
[1760232735055,1.07066944,110160.0,110150.0,0.00250368]
[1760232735500,0.6076641,110160.0,110150.0,0.00250368]
[1760232735945,0.6076641,110160.0,110150.0,0.00050368]
[1760232736806,5.13741844,110160.0,110150.0,0.00050368]
[1760232740420,5.13741844,110160.0,110150.0,0.00229009]
[1760232741786,4.6744131,110160.0,110150.0,0.00229009]
[1760232741993,5.13741844,110160.0,110150.0,0.00229009]
[1760232743308,4.6744131,110160.0,110150.0,0.00229009]
[1760232743515,0.1815541,110160.0,110150.0,0.09080009]
[1760232745012,0.1815541,110160.0,110150.0,0.09180009]
[1760232745216,0.5215541,110160.0,110150.0,0.09280009]
[1760232745420,0.21311192,110170.0,110150.0,0.29152772]
[1760232745630,0.1815541,110160.0,110150.0,0.04956368]
[1760232745876,0.5215541,110160.0,110150.0,0.05056368]
[1760232746269,0.5215541,110160.0,110150.0,0.09001368]
[1760232746683,0.5950207,110160.0,110150.0,0.09101368]
[1760232747151,0.5678741,110160.0,110150.0,0.05056368]
[1760232747796,0.5678741,110160.0,110150.0,0.04956368]
[1760232748012,0.5215541,110160.0,110150.0,0.09001368]
[1760232748225,0.5678741,110160.0,110150.0,0.04956368]
[1760232748930,0.5678741,110160.0,110150.0,0.05056368]
[1760232749149,0.38632,110160.0,110150.0,0.05056368]
[1760232749361,0.5678741,110160.0,110150.0,0.05056368]
[1760232749575,0.5415741,110160.0,110150.0,0.05056368]
[1760232749803,0.5215541,110160.0,110150.0,0.10229005]
[1760232750230,0.34,110160.0,110150.0,0.27258426]
[1760232750463,0.5215541,110160.0,110150.0,0.27258426]
[1760232751102,0.5215541,110160.0,110150.0,0.09101368]
[1760232751310,0.5215541,110160.0,110150.0,0.10917073]
[1760232751936,0.5215541,110160.0,110150.0,0.11095714]
[1760232752144,0.5215541,110160.0,110150.0,0.18868693]
[1760232752351,0.5215541,110160.0,110150.0,0.27437067]
[1760232752579,0.5215541,110160.0,110150.0,0.09280009]
[1760232753199,0.0315743,110170.0,110160.0,0.1815541]
[1760232753414,0.0315743,110170.0,110160.0,0.73131944]
[1760232753667,0.19158369,110190.0,110180.0,0.18152114]
[1760232753668,0.00097729,110190.0,110180.0,0.18152114]
[1760232753872,0.00097729,110190.0,110180.0,0.22881114]
[1760232754075,0.00097729,110190.0,110180.0,0.73128648]
[1760232754311,0.34097729,110190.0,110180.0,0.73128648]
[1760232754515,0.34097729,110190.0,110180.0,0.26828114]
[1760232755131,0.52248196,110190.0,110180.0,0.73228648]
[1760232755343,0.52248196,110190.0,110180.0,0.76891881]
[1760232755773,0.52248196,110190.0,110180.0,0.76991881]
[1760232755989,0.00097729,110190.0,110180.0,0.76991881]
[1760232756625,0.03245643,110190.0,110180.0,0.76891881]
[1760232756841,0.00097729,110190.0,110180.0,0.76891881]
[1760232757058,0.00097729,110190.0,110180.0,0.79807071]
[1760232757722,0.00097729,110190.0,110180.0,0.79907071]
[1760232758153,0.00097729,110190.0,110180.0,0.80007071]
[1760232758363,0.00097729,110190.0,110180.0,0.79807071]
[1760232758539,0.00097729,110190.0,110180.0,0.80007071]
[1760232758776,0.00097729,110190.0,110180.0,0.80107071]
[1760232761134,0.00097729,110190.0,110180.0,0.33806537]
[1760232761374,0.00097729,110190.0,110180.0,0.30791347]
[1760232762419,0.18248196,110190.0,110180.0,0.08976]
[1760232763042,0.18248196,110190.0,110180.0,0.27128114]
[1760232763246,0.00097729,110190.0,110180.0,0.26928114]
[1760232763656,0.00097729,110190.0,110180.0,0.27028114]
[1760232763835,0.00097729,110190.0,110180.0,0.95133424]
[1760232764073,0.00097729,110190.0,110180.0,0.95033424]
[1760232764278,0.00097729,110190.0,110180.0,0.94933424]
[1760232764431,0.00097729,110190.0,110180.0,0.95033424]
[1760232764645,0.00097729,110190.0,110180.0,0.98148614]
[1760232764818,0.00097729,110190.0,110180.0,0.98048614]
[1760232765013,0.00097729,110190.0,110180.0,0.29843304]
[1760232765259,0.00097729,110190.0,110180.0,0.29943304]
[1760232765468,0.00097729,110190.0,110180.0,0.8917668]
[1760232766268,0.00097729,110190.0,110180.0,0.8937668]
[1760232766803,0.00097729,110190.0,110180.0,0.32874287]
[1760232766984,0.00097729,110190.0,110180.0,0.30143304]
[1760232767574,0.00097729,110190.0,110180.0,0.37181955]
[1760232767786,0.00097729,110190.0,110180.0,0.29843304]
[1760232767995,0.00097729,110190.0,110180.0,0.30043304]
[1760232768208,0.00097729,110190.0,110180.0,0.29943304]
[1760232768412,0.34097729,110190.0,110180.0,0.26928114]
[1760232768622,0.34097729,110190.0,110180.0,0.27028114]
[1760232768829,0.52248196,110190.0,110180.0,0.08876]
[1760232769114,0.52248196,110190.0,110180.0,0.08776]
[1760232769548,0.52248196,110190.0,110180.0,0.08976]
[1760232769974,0.52248196,110190.0,110180.0,0.08776]
[1760232770177,0.34097729,110190.0,110180.0,0.28023904]
[1760232770397,0.34097729,110190.0,110180.0,0.27028114]
[1760232770614,0.34097729,110190.0,110180.0,0.95033424]
[1760232771065,0.34097729,110190.0,110180.0,0.95133424]
[1760232772266,0.34097729,110190.0,110180.0,0.27028114]
[1760232772946,0.34097729,110190.0,110180.0,0.8616149]
[1760232773153,0.34097729,110190.0,110180.0,0.8626149]
[1760232773568,0.34097729,110190.0,110180.0,0.8606149]
[1760232774122,0.34097729,110190.0,110180.0,0.8636149]
[1760232774279,0.34097729,110190.0,110180.0,0.95233424]
[1760232774846,0.34097729,110190.0,110180.0,0.27128114]
[1760232776507,0.52248196,110190.0,110180.0,0.08976]
[1760232776932,0.52248196,110190.0,110180.0,0.27128114]
[1760232777162,0.52248196,110190.0,110180.0,0.08976]
[1760232777369,0.52248196,110190.0,110180.0,0.26928114]
[1760232777975,0.68055922,110190.0,110170.0,0.02025537]
[1760232778208,0.34,110180.0,110170.0,0.02025537]
[1760232778430,0.52152114,110180.0,110170.0,0.02025537]
[1760232778644,0.52152114,110180.0,110170.0,0.04692537]
[1760232778840,0.54922114,110180.0,110170.0,0.04692537]
[1760232779338,0.52152114,110180.0,110170.0,0.04692537]
[1760232779783,0.52152114,110180.0,110170.0,0.04792537]
[1760232780198,0.52152114,110180.0,110170.0,0.04692537]
[1760232780423,0.52152114,110180.0,110170.0,0.02125537]
[1760232780424,0.64341945,110180.0,110170.0,0.02125537]
[1760232780627,0.60719114,110180.0,110170.0,0.00159537]
[1760232781662,0.56702114,110180.0,110170.0,0.02826537]
[1760232781864,0.56702114,110180.0,110170.0,0.00159537]
[1760232782066,0.52152114,110180.0,110170.0,0.08557537]
[1760232782272,0.52152114,110180.0,110170.0,0.11606899]
[1760232782476,0.52152114,110180.0,110170.0,0.13422275]
[1760232782626,0.52152114,110180.0,110170.0,0.10372913]
[1760232783175,0.34,110180.0,110170.0,0.28426675]
[1760232783332,0.18248196,110190.0,110170.0,0.26611299]
[1760232783547,0.18248196,110190.0,110180.0,0.25784325]
[1760232783766,0.34097729,110190.0,110180.0,0.31411676]
[1760232784001,0.00097729,110190.0,110180.0,0.31411676]
[1760232784478,0.52248196,110190.0,110180.0,0.08398]
[1760232784714,0.18248196,110190.0,110180.0,0.08398]
[1760232784900,0.56822196,110190.0,110180.0,0.04518]
[1760232785359,0.56822196,110190.0,110180.0,0.01937]
[1760232785539,0.64907212,110190.0,110180.0,0.01937]
[1760232785981,0.64907212,110190.0,110180.0,0.02037]
[1760232786189,0.60900196,110190.0,110180.0,0.001]
[1760232788501,0.56822196,110190.0,110180.0,0.02681]
[1760232789198,0.60900196,110190.0,110180.0,0.001]
[1760232791365,0.56822196,110190.0,110180.0,0.04618]
[1760232791586,0.52248196,110190.0,110180.0,0.08498]
[1760232792074,0.34097729,110190.0,110180.0,0.09547454]
[1760232792288,0.00097729,110190.0,110180.0,0.27699568]
[1760232792508,0.18248196,110190.0,110180.0,0.27699568]
[1760232792925,0.52248196,110190.0,110180.0,0.27699568]
[1760232793571,0.52248196,110190.0,110180.0,0.27799568]
[1760232794215,0.52248196,110190.0,110180.0,0.27699568]
[1760232794641,0.52248196,110190.0,110180.0,0.27799568]